bitfinex/quotes_ETHUSD_20250314
["timestamp","ask_amount","ask_price","bid_price","bid_amount"]
[1741941120473,5.077,1904.9,1904.6,5.2503]
[1741941120680,5.077,1904.9,1904.6,10.50062]
[1741941120973,5.077,1904.9,1904.7,5.25013]
[1741941121177,5.077,1904.9,1904.8,5.24989]
[1741941121548,6.06694,1905.2,1904.8,10.49965]
[1741941121748,5.077,1905.1,1904.9,5.24945]
[1741941122244,17.36,1905.3,1905.1,5.24882]
[1741941122560,5.079,1905.2,1905.1,5.24882]
[1741941122867,0.7568,1905.6,1905.1,5.24882]
[1741941123179,5.081,1905.5,1905.4,5.24802]
[1741941123348,5.081,1905.5,1905.4,6.297673]
[1741941123545,17.367,1905.9,1905.7,5.24729]
[1741941123950,5.087,1905.8,1905.7,6.02847]
[1741941124450,17.367,1905.9,1905.7,6.02847]
[1741941124676,17.367,1905.9,1905.8,5.24714]
[1741941125081,5.088,1906.0,1905.9,5.24686]
[1741941125982,0.8096,1906.9,1906.1,0.7915]
[1741941126177,0.8096,1906.9,1906.8,5.24438]
[1741941126360,17.364,1907.0,1906.8,5.24438]
[1741941126361,17.364,1907.0,1906.9,5.24411]
[1741941126558,17.364,1907.0,1906.7,5.24462]
[1741941127473,17.364,1907.0,1906.8,10.4885]
[1741941127674,22.46,1907.0,1906.8,5.24422]
[1741941128278,22.46,1907.0,1906.9,5.24411]
[1741941128488,22.46,1907.0,1906.8,5.24422]
[1741941129590,22.453,1907.0,1906.8,5.24422]
[1741941130182,17.364,1907.0,1906.8,5.24422]
[1741941130375,22.452,1907.0,1906.8,5.24422]
[1741941130565,24.6972,1907.0,1906.6,10.48952]
[1741941130766,24.6972,1907.0,1906.6,10.48953]
[1741941130967,24.6972,1907.0,1906.6,5.24471]
[1741941131355,29.94106,1907.0,1906.5,6.03671]
[1741941131551,5.24451,1906.8,1906.4,5.24536]
[1741941131773,0.7784,1906.7,1906.4,5.24536]
[1741941132058,5.085,1906.6,1906.4,5.24535]
[1741941132260,5.085,1906.6,1906.4,5.24531]
[1741941132488,5.085,1906.6,1906.5,5.24521]
[1741941133184,5.086,1906.9,1906.5,1.049052]
[1741941133383,5.086,1906.9,1906.7,5.24446]
[1741941133588,5.086,1906.9,1906.8,5.24438]
[1741941133753,5.087,1906.9,1906.8,5.24438]
[1741941135893,5.087,1906.9,1906.7,5.24446]
[1741941136988,5.087,1906.9,1906.6,5.9962]
[1741941137205,13.100604,1906.9,1906.5,5.24495]
[1741941137515,13.100594,1906.9,1906.5,5.24495]
[1741941138059,5.087,1906.9,1906.6,5.24492]
[1741941138259,5.087,1906.9,1906.8,5.24438]
[1741941138682,5.087,1906.9,1906.7,5.24466]
[1741941138995,5.087,1906.9,1906.7,5.24449]
[1741941139206,5.087,1906.9,1906.7,10.48903]
[1741941139370,5.087,1906.9,1906.8,5.24438]
[1741941140389,5.087,1906.9,1906.7,5.24449]
[1741941140587,5.087,1906.9,1906.7,10.4889]
[1741941140787,5.087,1906.9,1906.6,5.24492]
[1741941141001,5.087,1906.9,1906.7,5.2446]
[1741941142317,5.087,1906.9,1906.7,5.24451]
[1741941142471,5.087,1906.9,1906.7,10.48897]
[1741941142671,5.087,1906.9,1906.7,5.24446]
[1741941142896,5.087,1906.9,1906.6,5.24491]
[1741941143104,5.24468,1906.7,1906.3,5.24554]
[1741941143305,5.24466,1906.7,1906.0,11.33654]
[1741941143499,5.24591,1906.3,1906.0,0.7749]
[1741941143772,5.24632,1906.1,1905.7,5.24741]
[1741941143985,5.24632,1906.1,1905.7,5.849211]
[1741941144178,5.24632,1906.1,1905.6,6.01816]
[1741941144384,6.0164,1906.0,1905.6,5.24756]
[1741941144676,6.0164,1906.0,1905.6,10.49503]
[1741941145303,6.0164,1906.0,1905.6,5.24747]
[1741941146084,0.7698,1906.0,1905.6,10.49493]
[1741941146421,6.0164,1906.0,1905.5,5.24796]
[1741941146615,5.24737,1905.8,1905.3,10.49663]
[1741941146815,10.31957,1905.7,1905.3,5.24831]
[1741941146980,0.8174,1905.6,1905.1,10.49766]
[1741941147181,6.0652,1905.6,1905.1,6.373666]
[1741941147495,6.0652,1905.6,1905.1,10.49773]
[1741941148120,10.49674,1905.4,1904.9,5.24957]
[1741941148319,10.32862,1905.3,1904.9,5.24957]
[1741941148521,5.08,1905.3,1904.9,5.30188962]
[1741941148694,5.08,1905.3,1904.9,5.2494]
[1741941148695,10.32857,1905.3,1904.9,5.2494]
[1741941149228,5.24953,1905.0,1904.6,11.34044]
[1741941149394,10.32877,1904.9,1904.4,10.50179]
[1741941149594,15.57863,1904.9,1904.4,10.50168]
[1741941149936,6.0627,1904.7,1904.3,11.34121]
[1741941150621,5.25048,1904.6,1904.3,6.09]
[1741941150803,5.094,1904.5,1904.2,10.5027]
[1741941150983,5.094,1904.5,1904.2,5.25127]
[1741941151194,5.094,1904.5,1904.0,5.25184]
[1741941151195,11.379188,1904.5,1904.0,5.25184]
[1741941151714,6.128448,1904.5,1904.2,5.25154]
[1741941151902,5.094,1904.5,1904.2,5.25154]
[1741941152097,5.094,1904.5,1904.2,5.25139]
[1741941153138,5.094,1904.5,1904.3,5.25122]
[1741941153501,10.34484,1904.5,1904.0,5.25183]
[1741941153702,6.03073,1904.2,1903.8,5.25244]
[1741941153908,5.1,1904.1,1903.8,5.25244]
[1741941154140,5.1,1904.1,1903.9,5.25216]
[1741941154333,5.1,1904.1,1904.0,5.2521]
[1741941154821,5.1,1904.1,1903.9,5.25216]
[1741941155233,5.1,1904.1,1903.9,10.50438]
[1741941155430,5.1,1904.1,1903.9,5.25216]
[1741941155845,5.1,1904.1,1903.8,5.25262]
[1741941156152,5.1,1904.1,1903.8,10.55758108]
[1741941156361,5.1,1904.1,1903.8,10.50506]
[1741941156664,5.1,1904.1,1903.8,5.25244]
[1741941156835,5.1,1904.1,1903.8,10.50497]
[1741941157705,5.1,1904.1,1903.8,5.25244]
[1741941157945,10.86184,1904.1,1903.7,5.25287]
[1741941158148,5.61,1904.1,1903.8,5.25263]
[1741941158444,10.86185,1904.1,1903.6,5.25301]
[1741941158615,5.61,1904.1,1903.7,5.25273]
[1741941159152,0.561,1904.0,1903.7,5.25273]
[1741941159457,1.3349,1904.0,1903.7,10.50555]
[1741941159671,0.7739,1904.0,1903.7,5.25273]
[1741941159944,0.7739,1904.0,1903.7,10.50555]
[1741941160129,0.7739,1904.0,1903.7,5.25273]
[1741941160333,6.02619,1904.0,1903.6,5.25316]
[1741941160517,6.02619,1904.0,1903.6,5.25319]
[1741941160723,12.442139,1904.0,1903.6,5.25319]
[1741941161243,7.189739,1904.0,1903.6,5.25319]
[1741941161449,7.189739,1904.0,1903.4,0.7603]
[1741941161450,5.80251,1903.9,1903.4,5.25352]
[1741941161608,5.80251,1903.9,1903.4,10.50712]
[1741941161609,5.25265,1903.8,1903.4,10.50712]
[1741941161806,0.806,1903.6,1903.1,5.25442]
[1741941162011,0.806,1903.6,1903.3,5.25401]
[1741941162251,0.806,1903.6,1903.2,5.25419]
[1741941162749,6.05924,1903.6,1903.2,5.25419]
[1741941163449,10.50736,1903.5,1903.0,6.01155]
[1741941163653,5.25363,1903.5,1903.1,5.25453]
[1741941163951,6.05926,1903.6,1903.2,5.25425]
[1741941164123,7.699997,1903.6,1903.1,5.25453]
[1741941164325,5.25364,1903.5,1903.1,5.25453]
[1741941164725,7.699947,1903.6,1902.9,5.25511]
[1741941164726,0.7801,1903.4,1902.9,5.25511]
[1741941165054,5.094,1903.3,1903.0,5.25486]
[1741941165225,5.094,1903.3,1903.2,5.2543]
[1741941165552,5.094,1903.3,1902.9,5.25488]
[1741941165757,10.34824,1903.3,1902.9,5.25488]
[1741941166117,6.03446,1903.2,1902.8,10.51067]
[1741941166313,6.03446,1903.2,1902.8,5.25528]
[1741941166516,2.41837,1903.2,1902.8,5.25519]
[1741941166710,7.67268,1903.2,1902.8,5.25519]
[1741941166911,5.2551,1903.0,1902.3,5.25669]
[1741941167110,6.08549,1902.7,1902.3,5.25669]
[1741941167317,0.8297,1902.7,1902.4,5.25637]
[1741941167556,0.8297,1902.7,1902.3,5.25667]
[1741941167754,0.8297,1902.7,1902.1,0.7971]
[1741941168063,0.8297,1902.7,1902.3,5.25657]
[1741941168219,0.8297,1902.7,1902.4,5.25651]
[1741941168658,6.62185,1902.8,1902.4,5.25651]
[1741941168861,5.25571,1902.7,1902.3,5.25664]
[1741941169228,7.793705,1902.8,1902.4,5.25634]
[1741941169963,7.793705,1902.8,1902.3,5.25678]
[1741941169964,0.8162,1902.8,1902.5,5.25623]
[1741941170263,0.8162,1902.8,1902.5,10.51211]
[1741941170413,0.8162,1902.8,1902.6,5.25595]
[1741941170617,10.35419,1902.9,1902.6,5.25595]
[1741941171061,5.125,1902.9,1902.7,5.25557]
[1741941171262,5.125,1902.9,1902.6,6.02234]
[1741941171426,5.125,1902.9,1902.6,11.27811]
[1741941171631,5.125,1902.9,1902.6,6.02217]
[1741941171947,5.125,1902.9,1902.6,6.02214]
[1741941172121,5.125,1902.9,1902.8,5.25541]
[1741941172322,5.123,1903.0,1902.8,10.51071]
[1741941172552,5.123,1903.0,1902.9,5.25513]
[1741941172923,5.121,1903.1,1903.0,5.2547]
[1741941173317,5.126,1903.2,1903.1,5.25449]
[1741941174256,5.124,1903.3,1903.2,5.25413]
[1741941174958,5.123,1903.4,1903.3,5.25386]
[1741941175262,5.123,1903.4,1903.1,5.25454]
[1741941175454,5.123,1903.4,1903.2,5.25428]
[1741941175660,5.123,1903.4,1903.3,5.25403]
[1741941176037,5.123,1903.4,1903.0,6.8564]
[1741941176038,18.1889,1903.6,1903.0,6.8564]
[1741941176245,5.12,1903.5,1903.4,5.25375]
[1741941176476,5.12,1903.5,1903.3,10.50786]
[1741941176652,5.12,1903.5,1903.4,5.25375]
[1741941178364,5.12,1903.5,1903.3,5.25392]
[1741941178365,5.12,1903.5,1903.3,5.25385]
[1741941178884,5.12,1903.5,1903.2,5.25425]
[1741941179169,5.128,1903.6,1903.5,5.25348]
[1741941179545,5.128,1903.6,1903.4,5.25375]
[1741941179901,5.128,1903.6,1903.3,5.25402]
[1741941180169,5.128,1903.6,1903.5,5.25348]
[1741941180483,0.7566,1903.8,1903.7,5.25292]
[1741941180767,5.8886,1903.8,1903.6,5.25318]
[1741941180934,5.8886,1903.8,1903.4,6.01627]
[1741941181135,11.14136,1903.8,1903.4,5.25348]
[1741941181350,6.47746,1903.8,1903.4,5.25348]
[1741941181572,5.8886,1903.8,1903.6,5.25317]
[1741941181768,2.490019,1904.0,1903.7,5.25292]
[1741941182275,2.490019,1904.0,1903.5,0.05252854]
[1741941182276,5.25278,1903.8,1903.4,10.50714]
[1741941182568,5.129,1903.9,1903.6,5.2532]
[1741941182757,5.129,1903.9,1903.7,5.25281]
[1741941183258,5.129,1903.9,1903.6,5.2532]
[1741941183459,11.1433619,1903.9,1903.5,5.25342]
[1741941183664,5.25296,1903.7,1903.3,5.25391]
[1741941183864,0.7644,1903.6,1903.3,5.25391]
[1741941184068,5.135,1903.5,1903.2,7.43360832]
[1741941184371,5.135,1903.5,1903.2,6.67800597]
[1741941184565,5.135,1903.5,1903.2,6.13570581]
[1741941184746,5.135,1903.5,1903.3,5.25389]
[1741941184947,5.135,1903.5,1903.4,5.25375]
[1741941185372,5.135,1903.5,1903.2,5.25429]
[1741941185759,5.135,1903.5,1903.3,5.25389]
[1741941185961,5.135,1903.5,1903.4,5.25375]
[1741941186164,5.135,1903.5,1903.3,5.25389]
[1741941186391,5.135,1903.5,1903.3,10.50777]
[1741941186687,5.135,1903.5,1903.4,5.25375]
[1741941187263,5.126,1903.7,1903.3,1.835077]
[1741941187469,6.8231,1903.9,1903.7,5.2528]
[1741941187793,5.125,1903.8,1903.7,5.2528]
[1741941188464,5.125,1903.8,1903.6,5.25319]
[1741941188861,0.8133,1903.7,1903.3,5.25376]
[1741941189066,0.8133,1903.7,1903.4,5.25365]
[1741941189565,0.8133,1903.7,1903.2,5.25429]
[1741941189893,5.25329,1903.6,1903.2,10.50844]
[1741941190065,6.06646,1903.7,1903.3,5.25377]
[1741941190266,7.236856,1903.7,1903.3,5.25377]
[1741941190695,7.236826,1903.7,1903.3,5.25377]
[1741941190990,7.236826,1903.7,1903.4,5.25373]
[1741941191198,7.236756,1903.7,1903.3,5.25377]
[1741941191563,7.236756,1903.7,1903.3,10.50761]
[1741941191898,7.236756,1903.7,1903.3,5.25377]
[1741941192105,0.55,1903.6,1903.3,5.25377]
[1741941192590,0.55,1903.6,1903.3,10.50766]
[1741941192909,0.55,1903.6,1903.3,5.25377]
[1741941193106,6.0320686,1903.6,1903.2,5.25429]
[1741941193262,0.7642,1903.4,1903.1,5.25457]
[1741941193466,5.111,1903.3,1903.0,10.50956]
[1741941193693,10.36518,1903.3,1902.9,5.25512]
[1741941193882,10.36518,1903.3,1902.9,10.51006]
[1741941194189,10.36518,1903.3,1903.0,5.25485]
[1741941194391,6.749323,1903.3,1903.0,5.25485]
[1741941194605,5.111,1903.3,1903.0,5.25485]
[1741941195799,5.111,1903.3,1903.0,5.25484]
[1741941196104,10.36503,1903.3,1903.0,5.25484]
[1741941196267,10.36503,1903.3,1902.9,5.2551]
[1741941196681,10.36503,1903.3,1902.9,5.25503]
[1741941197374,10.36503,1903.3,1902.9,5.25495]
[1741941198066,12.003329,1903.3,1902.9,5.25495]
[1741941198270,5.25431,1903.2,1902.8,5.2553]
[1741941198565,0.8134,1903.1,1902.8,5.2553]
[1741941198778,0.8134,1903.1,1902.7,5.25567]
[1741941199076,5.25498,1903.0,1902.6,5.25594]
[1741941199278,5.107,1902.9,1902.6,5.25594]
[1741941199473,5.107,1902.9,1902.6,5.25581]
[1741941199806,5.107,1902.9,1902.5,5.25621]
[1741941200104,0.7858,1902.7,1902.4,5.25649]
[1741941200475,0.7858,1902.7,1902.4,5.25631]
[1741941201107,0.7858,1902.7,1902.5,5.25621]
[1741941202087,0.7858,1902.7,1902.5,5.25603]
[1741941203579,0.7858,1902.7,1902.5,5.05643]
[1741941204401,0.7858,1902.7,1902.4,5.2565]
[1741941204724,6.04157,1902.7,1902.3,11.28466]
[1741941205092,7.171268,1902.7,1902.3,5.25662]
[1741941206114,5.25598,1902.6,1902.3,5.25662]
[1741941206412,10.35024,1902.5,1902.1,5.25728]
[1741941206579,10.35024,1902.5,1902.1,10.51444]
[1741941206779,15.60669,1902.5,1902.1,5.25716]
[1741941207005,15.60669,1902.5,1901.9,6.8775]
[1741941207006,0.7845,1902.2,1901.9,5.25776]
[1741941207209,0.7845,1902.2,1901.7,5.25843]
[1741941207210,5.098,1902.1,1901.7,5.25843]
[1741941207420,5.098,1902.1,1901.7,5.25829]
[1741941207714,5.098,1902.1,1901.8,5.25806]
[1741941208275,5.098,1902.1,1901.7,5.25845]
[1741941208512,5.098,1902.1,1901.9,5.25789]
[1741941209331,8.402769,1902.4,1902.1,5.25723]
[1741941209626,5.117,1902.3,1902.2,5.25694]
[1741941211722,5.117,1902.3,1902.1,5.25723]
[1741941212627,11.64091,1902.3,1901.9,10.51555]
[1741941212926,11.64091,1902.3,1901.9,5.25773]
[1741941213421,16.89796,1902.3,1901.9,5.25773]
[1741941213627,16.89792,1902.3,1901.9,5.25773]
[1741941213837,11.64091,1902.3,1901.9,5.25773]
[1741941214223,6.421171,1902.2,1901.8,11.34813]
[1741941214425,5.25736,1902.1,1901.8,6.09]
[1741941214627,5.25779,1902.0,1901.6,6.05091]
[1741941214814,5.123,1901.9,1901.6,6.05091]
[1741941214999,5.123,1901.9,1901.7,5.25843]
[1741941216108,5.123,1901.9,1901.6,10.51726]
[1741941216427,5.123,1901.9,1901.6,10.51714]
[1741941216633,5.123,1901.9,1901.6,5.25855]
[1741941216802,5.123,1901.9,1901.6,10.51714]
[1741941217135,5.123,1901.9,1901.6,10.51716]
[1741941217631,6.241154,1901.9,1901.6,5.25855]
[1741941217811,5.123,1901.9,1901.7,5.2584]
[1741941218213,5.123,1901.9,1901.6,5.25865]
[1741941218802,5.25818,1901.8,1901.5,5.25898]
[1741941219000,5.25818,1901.8,1901.4,6.01145]
[1741941219197,6.822108,1901.8,1901.4,6.01145]
[1741941219401,12.080518,1901.8,1901.4,5.25915]
[1741941219641,5.25847,1901.7,1901.3,11.34947]
[1741941219814,6.05897,1901.7,1901.3,11.34947]
[1741941220013,6.05897,1901.7,1901.3,6.09]
[1741941220014,11.31763,1901.7,1901.3,6.09]
[1741941220232,6.390673,1901.6,1901.2,5.25957]
[1741941220543,5.115,1901.5,1901.2,5.25957]
[1741941220900,5.115,1901.5,1901.2,10.51922]
[1741941221101,5.115,1901.5,1901.4,5.25928]
[1741941221316,5.115,1901.5,1901.4,6.08918]
[1741941222040,5.113,1901.9,1901.7,5.25839]
[1741941222419,5.113,1901.9,1901.8,5.25817]
[1741941222607,5.113,1901.9,1901.7,5.25839]
[1741941222953,5.12,1902.0,1901.7,5.25824]
[1741941223508,5.12,1902.0,1901.8,5.25816]
[1741941223924,10.37763,1902.0,1901.4,1.964763]
[1741941224225,11.496953,1902.0,1901.6,5.25857]
[1741941224435,18.1789,1902.5,1901.8,5.25817]
[1741941224635,5.25662,1902.4,1902.0,5.25746]
[1741941225305,5.25662,1902.4,1901.8,11.34815]
[1741941225306,0.7604,1902.4,1901.8,11.34815]
[1741941225502,0.7604,1902.1,1901.8,11.34807]
[1741941225707,5.147,1902.0,1901.9,5.25777]
[1741941227836,5.147,1902.0,1901.7,5.25832]
[1741941228042,6.263478,1902.0,1901.7,5.25832]
[1741941228407,11.521118,1902.0,1901.6,5.25872]
[1741941228606,6.263478,1902.0,1901.7,5.25841]
[1741941229208,11.521118,1902.0,1901.5,5.25898]
[1741941229537,0.7655,1901.8,1901.5,5.2588]
[1741941230338,1.36785,1901.8,1901.5,5.2588]
[1741941230544,0.7655,1901.8,1901.6,5.25868]
[1741941230739,0.7655,1901.8,1901.6,10.51703]
[1741941230949,7.031178,1902.0,1901.4,5.25919]
[1741941231154,7.031178,1902.0,1901.7,5.25837]
[1741941231659,5.25801,1901.9,1901.3,6.8644]
[1741941231809,12.2707408,1901.9,1901.5,5.25897]
[1741941232005,7.0126908,1901.9,1901.5,5.25897]
[1741941232254,7.0126908,1901.9,1901.3,6.8644]
[1741941232255,1.7546808,1901.9,1901.3,6.8644]
[1741941232545,1.7546808,1901.9,1901.6,5.25847]
[1741941232742,5.135,1901.9,1901.8,5.25817]
[1741941233040,5.146,1902.4,1902.1,5.25717]
[1741941233442,23.43626,1902.5,1902.1,5.25717]
[1741941233630,7.489626,1902.4,1902.1,10.51435]
[1741941233832,7.489626,1902.4,1902.1,10.51432]
[1741941234143,7.489626,1902.4,1902.1,5.25715]
[1741941234444,7.489626,1902.4,1901.9,5.25789]
[1741941234652,0.7531,1902.2,1901.9,5.25789]
[1741941235649,6.01017,1902.2,1901.8,5.25797]
[1741941235847,7.136878,1902.2,1901.8,5.25797]
[1741941236059,5.25744,1902.1,1901.7,5.25823]
[1741941236209,5.139,1902.0,1901.7,10.51649]
[1741941236409,5.139,1902.0,1901.7,5.25823]
[1741941237027,5.139,1902.0,1901.9,5.25789]
[1741941237733,5.144,1902.0,1901.9,5.25769]
[1741941238227,5.144,1902.0,1901.8,5.25811]
[1741941238422,5.144,1902.0,1901.8,5.25802]
[1741941238748,6.05553,1901.9,1901.5,5.25893]
[1741941238951,6.05553,1901.9,1901.4,5.25908]
[1741941239150,6.05553,1901.9,1901.5,5.25875]
[1741941239451,0.7975,1901.9,1901.7,5.25819]
[1741941239655,0.7975,1901.9,1901.5,5.25876]
[1741941239983,7.226852,1901.9,1901.5,10.51764]
[1741941240156,7.226852,1901.9,1901.5,5.25876]
[1741941240319,7.226852,1901.9,1901.4,5.25927]
[1741941240523,1.968852,1901.9,1901.5,8.25886]
[1741941240743,7.226922,1901.9,1901.5,8.25886]
[1741941241415,7.226862,1901.9,1901.5,13.5177]
[1741941241727,7.226862,1901.9,1901.5,8.25884]
[1741941242054,5.9809062,1901.8,1901.4,8.25922]
[1741941242557,5.25846,1901.7,1901.4,8.25922]
[1741941242733,5.153,1901.6,1901.5,5.259]
[1741941242933,5.153,1901.6,1901.5,5.31158753]
[1741941243149,5.153,1901.6,1901.5,5.259]
[1741941244757,5.153,1901.6,1901.4,13.51827]
[1741941244936,5.153,1901.6,1901.4,3.0]
[1741941245138,5.153,1901.6,1901.4,8.25908]
[1741941245958,5.153,1901.6,1901.4,13.51817]
[1741941246252,5.153,1901.6,1901.4,8.25908]
[1741941246461,5.153,1901.6,1901.3,10.51894]
[1741941246956,5.6683,1901.6,1901.2,9.06891]
[1741941247155,5.6683,1901.6,1901.2,14.32861]
[1741941247368,5.153,1901.6,1901.2,3.8093]
[1741941247684,5.153,1901.6,1901.3,10.51863]
[1741941247829,5.153,1901.6,1901.4,5.31174708]
[1741941248329,5.153,1901.6,1901.4,0.05258708]
[1741941248529,10.41173,1901.6,1901.2,6.06892]
[1741941248739,5.153,1901.6,1901.2,11.32854]
[1741941248965,5.153,1901.6,1901.3,5.25955]
[1741941249560,5.153,1901.6,1901.1,9.1]
[1741941249561,5.25939,1901.4,1901.1,6.1]
[1741941249862,5.25943,1901.4,1901.1,0.01]
[1741941250066,5.25957,1901.3,1901.1,0.01]
[1741941250250,6.965045,1901.6,1901.1,0.01]
[1741941250450,5.2592,1901.5,1901.1,0.01]
[1741941250649,5.25933,1901.4,1901.1,0.01]
[1741941251243,10.51883,1901.4,1901.1,0.01]
[1741941251452,10.51873,1901.4,1901.1,0.01]
[1741941251763,5.25933,1901.4,1901.1,0.01]
[1741941252073,10.51885,1901.4,1901.1,0.01]
[1741941252372,6.43345745,1901.4,1901.1,0.01]
[1741941252685,1.17412745,1901.4,1901.1,0.01]
[1741941252888,5.25983,1901.2,1901.1,0.01]
[1741941253054,14.16303,1901.2,1901.1,0.01]
[1741941258740,6.03703,1901.2,1901.1,0.01]
[1741941258945,11.17003,1901.2,1901.1,0.01]
[1741941260691,14.72003,1901.2,1901.1,0.01]
[1741941260994,17.320012,1901.2,1901.1,0.01]
[1741941261483,34.721012,1901.2,1901.1,0.01]
[1741941263670,40.741012,1901.2,1901.1,1e-05]
[1741941264071,41.45998256,1901.2,1901.1,1e-05]
[1741941266078,42.18045816,1901.2,1901.1,1e-05]
[1741941267398,41.45998256,1901.2,1901.1,1e-05]
[1741941267561,40.741012,1901.2,1901.1,1e-05]
[1741941267758,40.191012,1901.2,1901.1,1e-05]
[1741941268261,5.26232,1900.3,1900.2,0.7598]
[1741941268471,5.125,1900.3,1900.2,0.7598]
[1741941270272,10.38732,1900.3,1900.2,0.7598]
[1741941270499,5.125,1900.3,1900.2,0.7598]
[1741941270700,10.38732,1900.3,1900.2,0.7598]
[1741941270903,10.38732,1900.3,1899.9,0.8266]
[1741941270904,5.2626,1900.2,1899.9,0.8266]
[1741941271072,5.26295,1900.1,1899.9,0.8266]
[1741941271278,10.52654,1900.0,1899.6,0.8327]
[1741941271507,5.121,1899.9,1899.6,0.8327]
[1741941271802,5.121,1899.9,1899.6,6.09691]
[1741941273010,10.38454,1899.9,1899.6,0.8327]
[1741941273827,5.121,1899.9,1899.6,0.8327]
[1741941273976,5.121,1899.9,1899.6,6.09691]
[1741941274715,5.121,1899.9,1899.6,7.233031]
[1741941274913,6.46120798,1900.4,1899.9,5.26339]
[1741941275214,5.112,1900.3,1900.1,0.7548]
[1741941275922,5.26126,1900.7,1900.1,1.40919355]
[1741941276212,5.117,1900.6,1900.3,6.01701]
[1741941276503,5.26205,1900.4,1900.3,0.7548]
[1741941276705,5.26191,1900.5,1900.3,0.7548]
[1741941277009,5.122,1900.5,1900.3,6.01699]
[1741941277305,5.26205,1900.4,1900.0,0.8064]
[1741941277486,5.26245,1900.3,1900.0,0.8064]
[1741941277694,5.26288,1900.1,1899.7,0.7557]
[1741941277874,5.26288,1900.1,1899.6,6.400281]
[1741941277875,5.264,1899.7,1899.5,0.7557]
[1741941278075,5.157,1899.6,1899.5,0.7557]
[1741941279179,5.157,1899.6,1899.5,1.357741]
[1741941279376,5.155,1899.8,1899.6,6.07245]
[1741941279732,5.155,1899.8,1899.7,5.26398]
[1741941280030,5.155,1899.8,1899.7,6.07228]
[1741941280190,5.155,1899.8,1899.7,0.8083]
[1741941280995,10.41871,1899.8,1899.7,0.8083]
[1741941281329,5.26402,1899.7,1899.4,0.8083]
[1741941281641,5.26398,1899.7,1899.4,0.8083]
[1741941281828,5.26454,1899.5,1899.4,0.8083]
[1741941282032,5.26451,1899.6,1899.4,0.8083]
[1741941282197,5.26454,1899.5,1899.4,0.8083]
[1741941282398,10.52885,1899.6,1899.4,0.8083]
[1741941282596,10.52893,1899.6,1899.4,0.8083]
[1741941282832,5.2644,1899.6,1899.4,0.8083]
[1741941283199,5.155,1899.8,1899.4,6.07296]
[1741941283399,5.155,1899.8,1899.5,6.02591]
[1741941283621,5.155,1899.8,1899.5,11.29042]
[1741941283935,5.177,1900.0,1899.7,0.7614]
[1741941284237,5.26371,1899.8,1899.5,0.7614]
[1741941284410,5.9401,1900.0,1899.5,0.7614]
[1741941284411,5.26426,1899.6,1899.5,0.7614]
[1741941284596,5.26454,1899.5,1899.4,6.09]
[1741941285328,5.26482,1899.4,1899.3,0.7614]
[1741941285515,5.26454,1899.5,1899.3,0.7614]
[1741941285516,5.26454,1899.5,1899.3,0.7114]
[1741941285710,10.52933,1899.5,1899.3,0.7114]
[1741941286227,10.52933,1899.5,1899.0,6.09]
[1741941286228,5.26528,1899.3,1899.0,6.09]
[1741941286529,5.26577,1899.1,1898.6,11.35684]
[1741941286693,5.26577,1899.1,1898.7,5.26675]
[1741941286901,5.26577,1899.1,1898.6,6.09]
[1741941287120,6.310747,1899.1,1898.6,11.35686]
[1741941287328,6.310747,1899.1,1898.6,11.35681]
[1741941287532,6.310747,1899.1,1898.4,6.58134328]
[1741941287533,1.044977,1899.1,1898.4,6.58134328]
[1741941287733,5.26715,1898.6,1898.4,6.58134328]
[1741941288026,5.188,1898.6,1898.4,0.49134328]
[1741941288225,5.188,1898.6,1898.4,0.8845649]
[1741941288426,5.188,1898.6,1898.5,5.26731]
[1741941288602,5.26622,1898.9,1898.5,7.23804649]
[1741941288824,5.26596,1899.0,1898.5,7.23804649]
[1741941289030,5.188,1898.9,1898.7,0.75]
[1741941289339,5.188,1899.0,1898.7,0.75]
[1741941289541,10.45404,1899.0,1898.7,0.75]
[1741941291561,5.2662,1898.9,1898.7,0.75]
[1741941291749,5.26648,1898.8,1898.7,0.75]
[1741941292269,5.26625,1898.9,1898.7,0.75]
[1741941292585,10.45396,1899.0,1898.7,0.75]
[1741941292927,5.188,1899.0,1898.7,0.75]
[1741941293128,9.55014,1898.9,1898.3,6.8914]
[1741941293455,5.26771,1898.4,1898.1,0.8014]
[1741941293660,10.45571,1898.4,1898.1,0.8014]
[1741941294430,5.26792,1898.3,1898.1,0.8014]
[1741941294632,5.26814,1898.2,1897.9,6.8914]
[1741941295332,6.321916,1898.2,1897.8,0.05268131]
[1741941295533,5.26831,1898.2,1897.8,5.32182131]
[1741941295742,11.208,1898.4,1897.9,0.793]
[1741941296032,5.26865,1898.1,1897.9,0.793]
[1741941296227,5.2687,1898.0,1897.9,0.793]
[1741941296836,5.2687,1898.0,1897.6,0.7518]
[1741941297035,5.26921,1897.9,1897.6,0.7518]
[1741941297434,5.72187,1898.0,1897.6,0.7518]
[1741941297636,10.46381,1898.0,1897.6,0.7518]